[Event "Live Chess"]
[Site "Chess.com"]
[Date "2024.06.02"]
[Round "-"]
[White "ACM42"]
[Black "NottheBishopSacrifice"]
[Result "1/2-1/2"]
[WhiteElo "2170"]
[BlackElo "2331"]
[TimeControl "300"]
[EndTime "8:11:51 PDT"]
[Termination "Game drawn - timeout vs insufficient material"]

1. e4 {[%clk 0:04:51.7]} 1... c6 {[%clk 0:04:57.2]} 2. d4 {[%clk 0:04:49.4]}
2... d5 {[%clk 0:04:54]} 3. e5 {[%clk 0:04:48.8]} 3... c5 {[%clk 0:04:53]} 4. c3
{[%clk 0:04:47.7]} 4... Nc6 {[%clk 0:04:47.8]} 5. Nf3 {[%clk 0:04:46.7]} 5...
Bg4 {[%clk 0:04:46.1]} 6. Bb5 {[%clk 0:04:45.7]} 6... cxd4 {[%clk 0:04:44.5]} 7.
cxd4 {[%clk 0:04:43.8]} 7... e6 {[%clk 0:04:43.5]} 8. O-O {[%clk 0:04:39.3]}
8... Ne7 {[%clk 0:04:42.9]} 9. Be3 {[%clk 0:04:35.5]} 9... Nf5 {[%clk
0:04:41.6]} 10. Nc3 {[%clk 0:04:34.1]} 10... Be7 {[%clk 0:04:40]} 11. h3 {[%clk
0:04:30.5]} 11... Bxf3 {[%clk 0:04:37.7]} 12. Qxf3 {[%clk 0:04:29.2]} 12... O-O
{[%clk 0:04:37.3]} 13. Rfd1 {[%clk 0:04:16.4]} 13... Bg5 {[%clk 0:04:31.5]} 14.
Bxg5 {[%clk 0:03:41.6]} 14... Qxg5 {[%clk 0:04:26.8]} 15. Qg4 {[%clk 0:03:40.2]}
15... Qxg4 {[%clk 0:04:24.4]} 16. hxg4 {[%clk 0:03:37.8]} 16... Nfxd4 {[%clk
0:04:24]} 17. f4 {[%clk 0:03:26.9]} 17... a6 {[%clk 0:04:20.3]} 18. Bd3 {[%clk
0:03:15.9]} 18... Rac8 {[%clk 0:04:18.6]} 19. Kf2 {[%clk 0:02:59.7]} 19... Nb4
{[%clk 0:04:15.5]} 20. a3 {[%clk 0:02:51.4]} 20... Nbc6 {[%clk 0:04:10]} 21. Rh1
{[%clk 0:02:46.8]} 21... g6 {[%clk 0:04:07.6]} 22. Rh3 {[%clk 0:02:33.1]} 22...
f6 {[%clk 0:04:06.4]} 23. exf6 {[%clk 0:02:24]} 23... Rxf6 {[%clk 0:04:06.3]}
24. g3 {[%clk 0:02:21.7]} 24... Rcf8 {[%clk 0:04:02.1]} 25. Rah1 {[%clk
0:02:14.4]} 25... R6f7 {[%clk 0:03:58]} 26. g5 {[%clk 0:02:12.7]} 26... Rg7
{[%clk 0:03:54.7]} 27. Kg2 {[%clk 0:01:56.6]} 27... Ne7 {[%clk 0:03:52.7]} 28.
Rd1 {[%clk 0:01:37.7]} 28... Nef5 {[%clk 0:03:50.9]} 29. Rd2 {[%clk 0:01:35.4]}
29... Nb3 {[%clk 0:03:47]} 30. Rf2 {[%clk 0:01:31.3]} 30... d4 {[%clk
0:03:43.7]} 31. Ne4 {[%clk 0:01:29.3]} 31... Rc8 {[%clk 0:03:38.4]} 32. Nf6+
{[%clk 0:01:25.3]} 32... Kf8 {[%clk 0:03:37.8]} 33. Nxh7+ {[%clk 0:01:21.4]}
33... Ke7 {[%clk 0:03:37.1]} 34. Nf6 {[%clk 0:01:08.3]} 34... Nc1 {[%clk
0:03:35.2]} 35. Bxf5 {[%clk 0:00:45.1]} 35... exf5 {[%clk 0:03:31.4]} 36. Rh1
{[%clk 0:00:34.5]} 36... Nb3 {[%clk 0:03:27.5]} 37. Rd1 {[%clk 0:00:27.8]} 37...
Kd6 {[%clk 0:03:25.2]} 38. Rd3 {[%clk 0:00:26.9]} 38... Nc5 {[%clk 0:03:20]} 39.
Rxd4+ {[%clk 0:00:26]} 39... Kc6 {[%clk 0:03:19.2]} 40. Rc2 {[%clk 0:00:25.3]}
40... Kb6 {[%clk 0:03:11]} 41. b4 {[%clk 0:00:24.8]} 41... Nb3 {[%clk
0:03:08.6]} 42. Rxc8 {[%clk 0:00:23.6]} 42... Nxd4 {[%clk 0:03:06.9]} 43. Rd8
{[%clk 0:00:22.5]} 43... Nc6 {[%clk 0:03:05.2]} 44. Rd7 {[%clk 0:00:21.5]} 44...
Rxd7 {[%clk 0:03:03.2]} 45. Nxd7+ {[%clk 0:00:21]} 45... Kb5 {[%clk 0:03:02.9]}
46. Nf8 {[%clk 0:00:20.9]} 46... Ne7 {[%clk 0:03:01.6]} 47. Nxg6 {[%clk
0:00:20.8]} 47... Nxg6 {[%clk 0:03:00.4]} 48. Kf3 {[%clk 0:00:20.2]} 48... Kc6
{[%clk 0:02:54.3]} 49. g4 {[%clk 0:00:19.8]} 49... fxg4+ {[%clk 0:02:53.4]} 50.
Kxg4 {[%clk 0:00:18.9]} 50... Kd7 {[%clk 0:02:52.9]} 51. f5 {[%clk 0:00:18.4]}
51... Ne5+ {[%clk 0:02:51.4]} 52. Kf4 {[%clk 0:00:17.7]} 52... Nf7 {[%clk
0:02:50.1]} 53. g6 {[%clk 0:00:16.5]} 53... Nh6 {[%clk 0:02:49]} 54. Ke5 {[%clk
0:00:16.4]} 54... Ke7 {[%clk 0:02:47.4]} 55. f6+ {[%clk 0:00:15.4]} 55... Kf8
{[%clk 0:02:46.2]} 56. Ke6 {[%clk 0:00:15]} 56... Kg8 {[%clk 0:02:37]} 57. Ke7
{[%clk 0:00:13.3]} 57... Nf5+ {[%clk 0:02:34.6]} 58. Ke6 {[%clk 0:00:12.2]}
58... Nh6 {[%clk 0:02:33.3]} 59. a4 {[%clk 0:00:10.7]} 59... b6 {[%clk
0:02:31.3]} 60. b5 {[%clk 0:00:09.8]} 60... a5 {[%clk 0:02:29.1]} 61. Ke5 {[%clk
0:00:05.4]} 61... Kf8 {[%clk 0:02:25.1]} 62. Ke6 {[%clk 0:00:04.6]} 62... Kg8
{[%clk 0:02:24]} 63. f7+ {[%clk 0:00:03.9]} 63... Kg7 {[%clk 0:02:20.2]} 64. Kd7
{[%clk 0:00:03.2]} 64... Nf5 {[%clk 0:02:11.4]} 65. Kc6 {[%clk 0:00:03.1]} 65...
Ne7+ {[%clk 0:02:06.6]} 66. Kxb6 {[%clk 0:00:03]} 66... Nxg6 {[%clk 0:02:05.6]}
67. Kxa5 {[%clk 0:00:02.9]} 67... Kxf7 {[%clk 0:02:04.7]} 68. b6 {[%clk
0:00:02.8]} 68... Ne7 {[%clk 0:02:02.9]} 69. b7 {[%clk 0:00:02.7]} 69... Ke6
{[%clk 0:01:59.1]} 70. Kb6 {[%clk 0:00:02.6]} 70... Nd5+ {[%clk 0:01:57.2]} 71.
Kc6 {[%clk 0:00:01.2]} 71... Ne7+ {[%clk 0:01:55.8]} 72. Kc7 {[%clk 0:00:00.7]}
72... Nd5+ {[%clk 0:01:54.5]} 73. Kc6 {[%clk 0:00:00.2]} 73... Nb4+ {[%clk
0:01:53]} 74. Kc5 {[%clk 0:00:00.1]} 74... Na6+ {[%clk 0:01:51.7]} 1/2-1/2

[Event "Live Chess"]
[Site "Chess.com"]
[Date "2024.06.02"]
[Round "-"]
[White "Bradfield133"]
[Black "ShanthamGrarks"]
[Result "0-1"]
[WhiteElo "1830"]
[BlackElo "1892"]
[TimeControl "300"]
[EndTime "8:12:00 PDT"]
[Termination "ShanthamGrarks won on time"]

1. c4 {[%clk 0:04:57.2]} 1... c6 {[%clk 0:04:56.9]} 2. Qa4 {[%clk 0:04:53.9]}
2... Nf6 {[%clk 0:04:56.1]} 3. g3 {[%clk 0:04:52.7]} 3... g6 {[%clk 0:04:55.7]}
4. Bg2 {[%clk 0:04:51.9]} 4... Bg7 {[%clk 0:04:55.3]} 5. Nf3 {[%clk 0:04:51.3]}
5... O-O {[%clk 0:04:54.5]} 6. O-O {[%clk 0:04:50.4]} 6... d6 {[%clk 0:04:53.5]}
7. d3 {[%clk 0:04:49.7]} 7... Nbd7 {[%clk 0:04:52.6]} 8. Nbd2 {[%clk 0:04:48.4]}
8... Nc5 {[%clk 0:04:51.2]} 9. Qc2 {[%clk 0:04:47.1]} 9... Bd7 {[%clk 0:04:48]}
10. Rb1 {[%clk 0:04:42.9]} 10... e5 {[%clk 0:04:45]} 11. b4 {[%clk 0:04:40.8]}
11... Ne6 {[%clk 0:04:44.5]} 12. e4 {[%clk 0:04:36]} 12... g5 {[%clk 0:04:32]}
13. h3 {[%clk 0:04:31.6]} 13... h5 {[%clk 0:04:28.5]} 14. Nb3 {[%clk 0:04:27.4]}
14... Nh7 {[%clk 0:04:17.1]} 15. h4 {[%clk 0:04:14.5]} 15... g4 {[%clk
0:04:14.8]} 16. Nh2 {[%clk 0:04:07.2]} 16... Nd4 {[%clk 0:04:13.6]} 17. Nxd4
{[%clk 0:04:04.9]} 17... exd4 {[%clk 0:04:13.5]} 18. f3 {[%clk 0:04:00.2]} 18...
Nf6 {[%clk 0:04:08.8]} 19. Bg5 {[%clk 0:03:52.3]} 19... Qc8 {[%clk 0:03:48.8]}
20. Bxf6 {[%clk 0:03:25.7]} 20... Bxf6 {[%clk 0:03:46.2]} 21. fxg4 {[%clk
0:03:24.4]} 21... Be5 {[%clk 0:03:40.8]} 22. Qf2 {[%clk 0:02:30.7]} 22... Bxg4
{[%clk 0:03:35.2]} 23. Nf3 {[%clk 0:02:28.6]} 23... Bg7 {[%clk 0:03:28.8]} 24.
Nxd4 {[%clk 0:02:23.6]} 24... c5 {[%clk 0:03:20.9]} 25. Nf5 {[%clk 0:02:17.5]}
25... Bxf5 {[%clk 0:03:19.9]} 26. Qxf5 {[%clk 0:02:16.4]} 26... cxb4 {[%clk
0:03:09.8]} 27. Qxc8 {[%clk 0:02:12.6]} 27... Raxc8 {[%clk 0:03:08.6]} 28. Rxb4
{[%clk 0:02:11]} 28... b6 {[%clk 0:03:04.9]} 29. Rb5 {[%clk 0:02:04.4]} 29...
Be5 {[%clk 0:02:57.4]} 30. Rf5 {[%clk 0:01:58.5]} 30... a6 {[%clk 0:02:47.2]}
31. Rd5 {[%clk 0:01:55]} 31... b5 {[%clk 0:02:42.1]} 32. cxb5 {[%clk 0:01:39]}
32... axb5 {[%clk 0:02:25.9]} 33. Rxb5 {[%clk 0:01:22.5]} 33... f6 {[%clk
0:02:24.9]} 34. Kh2 {[%clk 0:01:02.3]} 34... Rf7 {[%clk 0:02:22]} 35. a4 {[%clk
0:00:34.1]} 35... Rg7 {[%clk 0:02:08.1]} 36. Rf3 {[%clk 0:00:32.7]} 36... Rg4
{[%clk 0:02:07.1]} 37. Kh3 {[%clk 0:00:30.1]} 37... Kf7 {[%clk 0:02:01.9]} 38.
a5 {[%clk 0:00:27.8]} 38... Rcg8 {[%clk 0:01:58.3]} 39. Rb7+ {[%clk 0:00:21.8]}
39... Ke6 {[%clk 0:01:56]} 40. Kh2 {[%clk 0:00:07.3]} 40... Rxh4+ {[%clk
0:01:51.5]} 41. Bh3+ {[%clk 0:00:01.9]} 41... f5 {[%clk 0:01:38.6]} 0-1

[Event "Live Chess"]
[Site "Chess.com"]
[Date "2024.06.02"]
[Round "-"]
[White "KyryloPoluliakh"]
[Black "santhoshrlokesh"]
[Result "1/2-1/2"]
[WhiteElo "1533"]
[BlackElo "1475"]
[TimeControl "300"]
[EndTime "8:12:06 PDT"]
[Termination "Game drawn - insufficient material"]

1. c4 {[%clk 0:04:58.4]} 1... d5 {[%clk 0:04:57.9]} 2. Nc3 {[%clk 0:04:57.4]}
2... dxc4 {[%clk 0:04:56.6]} 3. e4 {[%clk 0:04:53.1]} 3... e6 {[%clk 0:04:52]}
4. Bxc4 {[%clk 0:04:51.7]} 4... Bb4 {[%clk 0:04:49.8]} 5. Nge2 {[%clk 0:04:48]}
5... Nf6 {[%clk 0:04:45.8]} 6. d4 {[%clk 0:04:46]} 6... Nbd7 {[%clk 0:04:34]} 7.
O-O {[%clk 0:04:42.8]} 7... Bxc3 {[%clk 0:04:31.7]} 8. Nxc3 {[%clk 0:04:39.9]}
8... O-O {[%clk 0:04:27.6]} 9. d5 {[%clk 0:04:37.6]} 9... exd5 {[%clk
0:04:24.1]} 10. Nxd5 {[%clk 0:04:35.3]} 10... b6 {[%clk 0:04:11.2]} 11. Nxf6+
{[%clk 0:04:31.5]} 11... Nxf6 {[%clk 0:04:07.6]} 12. Qxd8 {[%clk 0:04:25]} 12...
Rxd8 {[%clk 0:04:06.9]} 13. Bg5 {[%clk 0:04:23.4]} 13... h6 {[%clk 0:03:59.3]}
14. Bxf6 {[%clk 0:04:19.7]} 14... gxf6 {[%clk 0:03:58.4]} 15. Bd5 {[%clk
0:04:18.7]} 15... Rb8 {[%clk 0:03:54.6]} 16. Rfd1 {[%clk 0:04:14.4]} 16... Bb7
{[%clk 0:03:48.3]} 17. Bxb7 {[%clk 0:04:08]} 17... Rxd1+ {[%clk 0:03:46.3]} 18.
Rxd1 {[%clk 0:04:06.5]} 18... Rxb7 {[%clk 0:03:45.5]} 19. f3 {[%clk 0:04:02]}
19... c5 {[%clk 0:03:43.9]} 20. Kf2 {[%clk 0:04:01.3]} 20... Kf8 {[%clk
0:03:41.8]} 21. Ke3 {[%clk 0:04:00.7]} 21... Ke7 {[%clk 0:03:40.8]} 22. a3
{[%clk 0:03:56.6]} 22... Ke6 {[%clk 0:03:38.9]} 23. b4 {[%clk 0:03:54.9]} 23...
cxb4 {[%clk 0:03:34.2]} 24. axb4 {[%clk 0:03:54.1]} 24... a5 {[%clk 0:03:30.2]}
25. bxa5 {[%clk 0:03:52.3]} 25... bxa5 {[%clk 0:03:29.1]} 26. Ra1 {[%clk
0:03:51]} 26... Rb5 {[%clk 0:03:15]} 27. Kd4 {[%clk 0:03:45.1]} 27... f5 {[%clk
0:03:02.1]} 28. exf5+ {[%clk 0:03:40.9]} 28... Rxf5 {[%clk 0:02:55.9]} 29. g4
{[%clk 0:03:37]} 29... Rxf3 {[%clk 0:02:49.7]} 30. Rxa5 {[%clk 0:03:35.9]} 30...
Rh3 {[%clk 0:02:44.9]} 31. Ra6+ {[%clk 0:03:29.9]} 31... Ke7 {[%clk 0:02:43.7]}
32. Ra2 {[%clk 0:03:22.6]} 32... Kf6 {[%clk 0:02:29.9]} 33. Ke4 {[%clk
0:03:19.7]} 33... h5 {[%clk 0:02:22]} 34. gxh5 {[%clk 0:03:16.7]} 34... Rxh5
{[%clk 0:02:20.3]} 35. Ra6+ {[%clk 0:03:13.2]} 35... Kg7 {[%clk 0:02:18]} 36.
Ra2 {[%clk 0:03:09]} 36... f5+ {[%clk 0:02:15.2]} 37. Kf4 {[%clk 0:03:07.9]}
37... Kf6 {[%clk 0:02:10.2]} 38. Kg3 {[%clk 0:03:01.4]} 38... Kg5 {[%clk
0:02:06.1]} 39. Ra5 {[%clk 0:02:55]} 39... Rh7 {[%clk 0:01:54.9]} 40. h3 {[%clk
0:02:46.5]} 40... Rh5 {[%clk 0:01:25.4]} 41. h4+ {[%clk 0:02:39.7]} 41... Rxh4
{[%clk 0:01:22.3]} 42. Rxf5+ {[%clk 0:02:38.9]} 42... Kxf5 {[%clk 0:01:15.4]}
43. Kxh4 {[%clk 0:02:37.9]} 1/2-1/2

[Event "Live Chess"]
[Site "Chess.com"]
[Date "2024.06.02"]
[Round "-"]
[White "wadsy27"]
[Black "JanMur7"]
[Result "1-0"]
[WhiteElo "2606"]
[BlackElo "2288"]
[TimeControl "300"]
[EndTime "8:12:17 PDT"]
[Termination "wadsy27 won by resignation"]

1. c4 {[%clk 0:04:58.6]} 1... c5 {[%clk 0:04:58.2]} 2. g3 {[%clk 0:04:58]} 2...
g6 {[%clk 0:04:56.8]} 3. Bg2 {[%clk 0:04:57.4]} 3... Bg7 {[%clk 0:04:56.4]} 4.
Nc3 {[%clk 0:04:57]} 4... Nc6 {[%clk 0:04:55.6]} 5. Nf3 {[%clk 0:04:56.6]} 5...
e6 {[%clk 0:04:54.3]} 6. d4 {[%clk 0:04:53.8]} 6... Nxd4 {[%clk 0:04:52.6]} 7.
Nxd4 {[%clk 0:04:52.3]} 7... cxd4 {[%clk 0:04:52.5]} 8. Ne4 {[%clk 0:04:51.1]}
8... d5 {[%clk 0:04:47.9]} 9. Qa4+ {[%clk 0:04:50]} 9... Bd7 {[%clk 0:04:43.1]}
10. Nd6+ {[%clk 0:04:47.1]} 10... Kf8 {[%clk 0:04:42]} 11. Qa3 {[%clk
0:04:46.5]} 11... Ne7 {[%clk 0:04:39.1]} 12. cxd5 {[%clk 0:04:27.6]} 12... exd5
{[%clk 0:04:36.5]} 13. Bg5 {[%clk 0:04:25.5]} 13... Be5 {[%clk 0:04:28.6]} 14.
Nxb7 {[%clk 0:04:22]} 14... Qe8 {[%clk 0:04:22.7]} 15. Bxd5 {[%clk 0:04:17.9]}
15... h6 {[%clk 0:04:15.7]} 16. Nd6 {[%clk 0:04:04.9]} 16... Bxd6 {[%clk
0:04:10.2]} 17. Qxd6 {[%clk 0:04:03.7]} 17... hxg5 {[%clk 0:04:08.1]} 18. Bxa8
{[%clk 0:03:59.5]} 18... Qxa8 {[%clk 0:04:08]} 19. f3 {[%clk 0:03:48]} 19... Qb7
{[%clk 0:03:36.2]} 20. Qxd4 {[%clk 0:03:45.4]} 20... Kg8 {[%clk 0:03:35.2]} 21.
Rd1 {[%clk 0:03:42]} 21... Be6 {[%clk 0:03:21.5]} 22. Qf6 {[%clk 0:03:36.3]}
22... Nd5 {[%clk 0:03:15.6]} 23. Qxg5 {[%clk 0:03:34.6]} 23... Qxb2 {[%clk
0:03:05.2]} 24. Rxd5 {[%clk 0:03:24.2]} 24... Bxd5 {[%clk 0:03:01.1]} 25. Qxd5
{[%clk 0:03:22.5]} 25... Qa1+ {[%clk 0:02:55.4]} 26. Qd1 {[%clk 0:03:20.9]}
26... Qxa2 {[%clk 0:02:53.2]} 27. O-O {[%clk 0:03:18.9]} 27... Rh5 {[%clk
0:02:45.2]} 28. Qd8+ {[%clk 0:03:02.1]} 28... Kh7 {[%clk 0:02:42.7]} 29. Qe7
{[%clk 0:02:24]} 29... a5 {[%clk 0:02:31.4]} 30. Rd1 {[%clk 0:02:17.2]} 30... a4
{[%clk 0:02:12.9]} 31. g4 {[%clk 0:02:04.9]} 31... Rb5 {[%clk 0:01:59.9]} 32.
Rd8 {[%clk 0:01:55.8]} 32... Rb1+ {[%clk 0:01:30.4]} 33. Kg2 {[%clk 0:01:54.2]}
33... g5 {[%clk 0:01:01.2]} 34. Qe4+ {[%clk 0:01:50.6]} 34... Kg7 {[%clk
0:00:55.9]} 35. Qe5+ {[%clk 0:01:49.1]} 35... f6 {[%clk 0:00:45.6]} 36. Rd7+
{[%clk 0:01:46]} 36... Kg6 {[%clk 0:00:38.5]} 37. Qf5+ {[%clk 0:01:42.1]} 1-0

[Event "Live Chess"]
[Site "Chess.com"]
[Date "2024.06.02"]
[Round "-"]
[White "educatedlad"]
[Black "raimundklein"]
[Result "1-0"]
[WhiteElo "1751"]
[BlackElo "1594"]
[TimeControl "300"]
[EndTime "8:12:21 PDT"]
[Termination "educatedlad won on time"]

1. d4 {[%clk 0:04:58.9]} 1... Nf6 {[%clk 0:04:58.3]} 2. Bg5 {[%clk 0:04:57.9]}
2... Ne4 {[%clk 0:04:56.1]} 3. Bf4 {[%clk 0:04:56.7]} 3... c5 {[%clk 0:04:51.5]}
4. f3 {[%clk 0:04:55.7]} 4... Qa5+ {[%clk 0:04:48.5]} 5. c3 {[%clk 0:04:54.1]}
5... Nf6 {[%clk 0:04:34.7]} 6. d5 {[%clk 0:04:53]} 6... d6 {[%clk 0:04:32.8]} 7.
e4 {[%clk 0:04:50.8]} 7... Nbd7 {[%clk 0:04:25.8]} 8. Nh3 {[%clk 0:04:49.4]}
8... g6 {[%clk 0:04:24.2]} 9. a4 {[%clk 0:04:46.7]} 9... Bg7 {[%clk 0:04:22.8]}
10. Na3 {[%clk 0:04:45.6]} 10... a6 {[%clk 0:04:19.9]} 11. Nc4 {[%clk
0:04:44.1]} 11... Qc7 {[%clk 0:04:10.8]} 12. Nf2 {[%clk 0:04:36.3]} 12... O-O
{[%clk 0:04:03.8]} 13. g4 {[%clk 0:04:35.5]} 13... Nb6 {[%clk 0:03:56.1]} 14.
Nxb6 {[%clk 0:04:29.3]} 14... Qxb6 {[%clk 0:03:56]} 15. Qd2 {[%clk 0:04:26.8]}
15... Bd7 {[%clk 0:03:49.3]} 16. h4 {[%clk 0:04:24.2]} 16... Qb3 {[%clk
0:03:38.4]} 17. h5 {[%clk 0:04:18.4]} 17... b5 {[%clk 0:03:34.9]} 18. axb5
{[%clk 0:04:14.1]} 18... axb5 {[%clk 0:03:31.8]} 19. Rd1 {[%clk 0:04:09.4]}
19... Ra2 {[%clk 0:03:27.2]} 20. Nd3 {[%clk 0:04:06.2]} 20... Qa4 {[%clk
0:03:13.3]} 21. hxg6 {[%clk 0:04:02.6]} 21... fxg6 {[%clk 0:03:10.9]} 22. Bh6
{[%clk 0:04:00.1]} 22... Ra1 {[%clk 0:03:01.9]} 23. Bxg7 {[%clk 0:03:56.7]}
23... Rxd1+ {[%clk 0:02:58.7]} 24. Qxd1 {[%clk 0:03:55]} 24... Qxd1+ {[%clk
0:02:58.6]} 25. Kxd1 {[%clk 0:03:53.9]} 25... Kxg7 {[%clk 0:02:58.2]} 26. Nf4
{[%clk 0:03:49.4]} 26... Ra8 {[%clk 0:02:51.8]} 27. Kc2 {[%clk 0:03:43.9]} 27...
Ne8 {[%clk 0:02:36.9]} 28. Ne6+ {[%clk 0:03:42.3]} 28... Bxe6 {[%clk 0:02:27]}
29. dxe6 {[%clk 0:03:42.2]} 29... Nc7 {[%clk 0:02:26.2]} 30. Bd3 {[%clk
0:03:30.6]} 30... c4 {[%clk 0:02:23.5]} 31. Be2 {[%clk 0:03:28.7]} 31... Nxe6
{[%clk 0:02:22.1]} 32. Rf1 {[%clk 0:03:26.1]} 32... Nf4 {[%clk 0:02:19.5]} 33.
Kd2 {[%clk 0:03:22.4]} 33... Ra2 {[%clk 0:02:15.4]} 34. Rb1 {[%clk 0:03:20.5]}
34... e5 {[%clk 0:02:07.7]} 35. Ke3 {[%clk 0:03:17.7]} 35... g5 {[%clk
0:02:03.2]} 36. Bf1 {[%clk 0:03:12]} 36... Ne6 {[%clk 0:01:56.7]} 37. b3 {[%clk
0:03:07.8]} 37... Nc5 {[%clk 0:01:31.7]} 38. bxc4 {[%clk 0:03:05.8]} 38... bxc4
{[%clk 0:01:30.7]} 39. Bxc4 {[%clk 0:03:04.5]} 39... Rc2 {[%clk 0:01:29.3]} 40.
Bd5 {[%clk 0:02:53.5]} 40... Rxc3+ {[%clk 0:01:27.4]} 41. Kf2 {[%clk 0:02:52.7]}
41... Rc2+ {[%clk 0:01:18]} 42. Kg3 {[%clk 0:02:50.5]} 42... Kf6 {[%clk
0:01:07.2]} 43. Rb6 {[%clk 0:02:47.4]} 43... Ke7 {[%clk 0:01:06]} 44. Rc6 {[%clk
0:02:45.1]} 44... Rd2 {[%clk 0:00:55.9]} 45. Rc7+ {[%clk 0:02:43.1]} 45... Kf6
{[%clk 0:00:50.3]} 46. Rxh7 {[%clk 0:02:40.8]} 46... Nd3 {[%clk 0:00:42.8]} 47.
Rh6+ {[%clk 0:02:37.6]} 47... Ke7 {[%clk 0:00:41.7]} 48. Rg6 {[%clk 0:02:35]}
48... Nf4 {[%clk 0:00:34.2]} 49. Rxg5 {[%clk 0:02:33.4]} 49... Nxd5 {[%clk
0:00:33.4]} 50. exd5 {[%clk 0:02:31.8]} 50... Rxd5 {[%clk 0:00:33.3]} 51. f4
{[%clk 0:02:27.5]} 51... Rd3+ {[%clk 0:00:30.7]} 52. Kf2 {[%clk 0:02:21.9]}
52... e4 {[%clk 0:00:26.4]} 53. Ke2 {[%clk 0:02:19.8]} 53... Rf3 {[%clk
0:00:22.7]} 54. f5 {[%clk 0:02:18.1]} 54... Rf4 {[%clk 0:00:19.1]} 55. Rg6
{[%clk 0:02:16.6]} 55... d5 {[%clk 0:00:16.7]} 56. Ke3 {[%clk 0:02:15.3]} 56...
Rf3+ {[%clk 0:00:14.7]} 57. Kd4 {[%clk 0:02:14.5]} 57... Rd3+ {[%clk 0:00:13.8]}
58. Kc5 {[%clk 0:02:10.4]} 58... e3 {[%clk 0:00:12.2]} 59. Re6+ {[%clk
0:02:05.3]} 59... Kf7 {[%clk 0:00:10.9]} 60. g5 {[%clk 0:02:03]} 60... d4 {[%clk
0:00:06.4]} 61. Kc4 {[%clk 0:02:01.8]} 61... Rd2 {[%clk 0:00:04.2]} 62. Kd5
{[%clk 0:01:56.2]} 62... e2 {[%clk 0:00:02.2]} 63. Rf6+ {[%clk 0:01:56.1]} 63...
Kg7 {[%clk 0:00:00.8]} 64. Kd6 {[%clk 0:01:56]} 1-0

[Event "Live Chess"]
[Site "Chess.com"]
[Date "2024.06.02"]
[Round "-"]
[White "Duke_of_Bebington"]
[Black "StoreySniper"]
[Result "0-1"]
[WhiteElo "1574"]
[BlackElo "2489"]
[TimeControl "300"]
[EndTime "8:12:34 PDT"]
[Termination "StoreySniper won by resignation"]

1. e4 {[%clk 0:04:56.2]} 1... d5 {[%clk 0:04:58.6]} 2. exd5 {[%clk 0:04:54.4]}
2... Qxd5 {[%clk 0:04:58.1]} 3. Nf3 {[%clk 0:04:51.8]} 3... Bg4 {[%clk
0:04:55.8]} 4. Be2 {[%clk 0:04:49.6]} 4... Nc6 {[%clk 0:04:54.4]} 5. O-O {[%clk
0:04:43.6]} 5... e5 {[%clk 0:04:51.7]} 6. h3 {[%clk 0:04:34.6]} 6... Bh5 {[%clk
0:04:46.4]} 7. d3 {[%clk 0:04:33.5]} 7... O-O-O {[%clk 0:04:44.1]} 8. Nc3 {[%clk
0:04:26.9]} 8... Qd7 {[%clk 0:04:37.3]} 9. Ne4 {[%clk 0:04:25.9]} 9... f5 {[%clk
0:04:33.6]} 10. Ng3 {[%clk 0:04:24.4]} 10... Bg6 {[%clk 0:04:27.7]} 11. Bg5
{[%clk 0:04:06.1]} 11... Be7 {[%clk 0:04:19.3]} 12. Bxe7 {[%clk 0:04:04.8]}
12... Ngxe7 {[%clk 0:04:18.2]} 13. Ng5 {[%clk 0:03:06.6]} 13... h6 {[%clk
0:04:11.9]} 14. Nf3 {[%clk 0:03:01.2]} 14... Bh7 {[%clk 0:04:07.4]} 15. Nh2
{[%clk 0:02:59.1]} 15... g5 {[%clk 0:04:04.9]} 16. Bh5 {[%clk 0:02:54.7]} 16...
Bg6 {[%clk 0:03:54.3]} 17. Re1 {[%clk 0:02:51.6]} 17... Rhf8 {[%clk 0:03:31.6]}
18. a4 {[%clk 0:02:28]} 18... a6 {[%clk 0:03:27.9]} 19. Be2 {[%clk 0:02:13]}
19... Kb8 {[%clk 0:03:20.5]} 20. c3 {[%clk 0:02:04]} 20... Nd5 {[%clk
0:03:09.1]} 21. Bf3 {[%clk 0:01:53.9]} 21... Nf4 {[%clk 0:03:06.6]} 22. Bxc6
{[%clk 0:01:52.1]} 22... Qxc6 {[%clk 0:03:04.7]} 23. f3 {[%clk 0:01:40.4]} 23...
Rxd3 {[%clk 0:03:02.3]} 24. Qb3 {[%clk 0:01:36.2]} 24... Rd2 {[%clk 0:02:49.6]}
0-1

[Event "Live Chess"]
[Site "Chess.com"]
[Date "2024.06.02"]
[Round "-"]
[White "Plimsol"]
[Black "Pablo_dmp"]
[Result "1-0"]
[WhiteElo "2374"]
[BlackElo "1979"]
[TimeControl "300"]
[EndTime "8:12:36 PDT"]
[Termination "Plimsol won by resignation"]

1. e4 {[%clk 0:04:57.9]} 1... c6 {[%clk 0:04:58.2]} 2. d4 {[%clk 0:04:56.9]}
2... d5 {[%clk 0:04:58.1]} 3. exd5 {[%clk 0:04:56.4]} 3... cxd5 {[%clk
0:04:57.5]} 4. c4 {[%clk 0:04:56]} 4... g6 {[%clk 0:04:56.5]} 5. Nc3 {[%clk
0:04:55.5]} 5... Nf6 {[%clk 0:04:55.4]} 6. Qb3 {[%clk 0:04:53.5]} 6... Bg7
{[%clk 0:04:53.1]} 7. cxd5 {[%clk 0:04:52.2]} 7... O-O {[%clk 0:04:52.1]} 8. Be2
{[%clk 0:04:51.6]} 8... e6 {[%clk 0:04:45.2]} 9. dxe6 {[%clk 0:04:43]} 9... Bxe6
{[%clk 0:04:43.2]} 10. Qxb7 {[%clk 0:04:41.4]} 10... Nbd7 {[%clk 0:04:17.4]} 11.
Nf3 {[%clk 0:04:39.5]} 11... Re8 {[%clk 0:04:09.3]} 12. O-O {[%clk 0:04:37]}
12... Nb6 {[%clk 0:04:00.1]} 13. Qa6 {[%clk 0:04:32.2]} 13... Nfd5 {[%clk
0:03:56.7]} 14. Bg5 {[%clk 0:04:27.1]} 14... Qd6 {[%clk 0:03:51.5]} 15. Rfe1
{[%clk 0:04:22.9]} 15... Rec8 {[%clk 0:03:43.7]} 16. Ne4 {[%clk 0:04:19.7]}
16... Qb4 {[%clk 0:03:39.3]} 17. Nc5 {[%clk 0:04:10.1]} 17... Qxb2 {[%clk
0:03:28.1]} 18. Nxe6 {[%clk 0:04:08.2]} 18... fxe6 {[%clk 0:03:28]} 19. Rab1
{[%clk 0:04:06.9]} 19... Qc2 {[%clk 0:03:21.3]} 20. Bd3 {[%clk 0:04:02.4]} 20...
Qc6 {[%clk 0:03:11.9]} 21. Ne5 {[%clk 0:03:55.5]} 21... Qd6 {[%clk 0:03:05.6]}
22. Rbc1 {[%clk 0:03:37.4]} 22... Rf8 {[%clk 0:02:57.6]} 23. Be4 {[%clk
0:03:08.1]} 23... Nb4 {[%clk 0:02:53.5]} 24. Qe2 {[%clk 0:03:03.1]} 24... Rad8
{[%clk 0:02:46.9]} 25. Nf3 {[%clk 0:02:56.7]} 25... a5 {[%clk 0:02:24.7]} 26.
Bxd8 {[%clk 0:02:54.4]} 26... Rxd8 {[%clk 0:02:17]} 27. a3 {[%clk 0:02:53.3]}
27... N4d5 {[%clk 0:02:13.2]} 28. Bxd5 {[%clk 0:02:52.6]} 28... exd5 {[%clk
0:02:12.5]} 29. Qe6+ {[%clk 0:02:51.2]} 29... Qxe6 {[%clk 0:02:10.7]} 30. Rxe6
{[%clk 0:02:50.2]} 30... Nc4 {[%clk 0:02:10.6]} 31. a4 {[%clk 0:02:43.5]} 31...
Rf8 {[%clk 0:02:05.1]} 32. h4 {[%clk 0:02:38.8]} 32... Nb2 {[%clk 0:01:53.4]}
33. Rc7 {[%clk 0:02:32]} 33... Nxa4 {[%clk 0:01:50.9]} 34. Ra7 {[%clk
0:02:26.2]} 34... Nb6 {[%clk 0:01:36.1]} 35. Rxb6 {[%clk 0:02:23.7]} 1-0